[Event "*** SCC Grand Prix: Titled Tuesday Blitz"]
[Site "Chess.com"]
[Date "2020.06.02"]
[Round "6"]
[White "Matibar"]
[Black "tsvet2005"]
[Result "1/2-1/2"]
[WhiteElo "2696"]
[BlackElo "2557"]
[TimeControl "180+1"]
[EndTime "11:10:33 PDT"]
[Termination "Game drawn by agreement"]

1. e4 {[%clk 0:03:00.9]} 1... c5 {[%clk 0:03:00.6]} 2. Nf3 {[%clk 0:02:59.7]}
2... d6 {[%clk 0:03:01.3]} 3. d4 {[%clk 0:02:59.3]} 3... cxd4 {[%clk 0:03:02.2]}
4. Nxd4 {[%clk 0:02:59.9]} 4... Nf6 {[%clk 0:03:03.1]} 5. Nc3 {[%clk 0:03:00.2]}
5... a6 {[%clk 0:03:03.8]} 6. Qd3 {[%clk 0:03:00.3]} 6... Nbd7 {[%clk 0:03:02]}
7. Be2 {[%clk 0:02:58]} 7... Nc5 {[%clk 0:02:58.4]} 8. Qe3 {[%clk 0:02:57.6]}
8... e5 {[%clk 0:02:49.9]} 9. Nb3 {[%clk 0:02:56.6]} 9... Nxb3 {[%clk 0:02:48]}
10. axb3 {[%clk 0:02:54.7]} 10... Be6 {[%clk 0:02:48.5]} 11. O-O {[%clk
0:02:51.2]} 11... Be7 {[%clk 0:02:47.4]} 12. Rd1 {[%clk 0:02:49.7]} 12... O-O
{[%clk 0:02:45.9]} 13. Qg3 {[%clk 0:02:35.9]} 13... Re8 {[%clk 0:02:31.5]} 14.
Bh6 {[%clk 0:02:30.6]} 14... g6 {[%clk 0:02:30.3]} 15. Bc4 {[%clk 0:02:20.3]}
15... Qc8 {[%clk 0:02:23.2]} 16. Qd3 {[%clk 0:02:08.6]} 16... Rd8 {[%clk
0:02:17.3]} 17. Bg5 {[%clk 0:01:53.2]} 17... b5 {[%clk 0:02:08.8]} 18. Bxe6
{[%clk 0:01:52.2]} 18... Qxe6 {[%clk 0:02:09.7]} 19. Bxf6 {[%clk 0:01:52]} 19...
Bxf6 {[%clk 0:02:03.7]} 20. Nd5 {[%clk 0:01:52.9]} 20... Ra7 {[%clk 0:01:58.5]}
21. c4 {[%clk 0:01:50.3]} 21... bxc4 {[%clk 0:01:57.4]} 22. bxc4 {[%clk
0:01:51.2]} 22... Bg5 {[%clk 0:01:55.7]} 23. b4 {[%clk 0:01:50.9]} 23... f5
{[%clk 0:01:46.3]} 24. b5 {[%clk 0:01:47.2]} 24... a5 {[%clk 0:01:32.4]} 25. b6
{[%clk 0:01:42.8]} 25... Rb7 {[%clk 0:01:26]} 26. Rxa5 {[%clk 0:01:41.1]} 26...
Rf8 {[%clk 0:01:23.1]} 27. f3 {[%clk 0:01:32.3]} 27... fxe4 {[%clk 0:01:22.4]}
28. Qxe4 {[%clk 0:01:32.4]} 28... Qd7 {[%clk 0:01:13.9]} 29. Kh1 {[%clk
0:01:27]} 29... Rc8 {[%clk 0:01:09.4]} 30. Rda1 {[%clk 0:01:11.7]} 30... Bd8
{[%clk 0:00:49.5]} 31. Ra7 {[%clk 0:01:01.8]} 31... Rcb8 {[%clk 0:00:49.2]} 32.
Rxb7 {[%clk 0:01:00.6]} 32... Rxb7 {[%clk 0:00:50.1]} 33. Rb1 {[%clk 0:00:44.3]}
33... Kg7 {[%clk 0:00:46.5]} 34. c5 {[%clk 0:00:32.1]} 34... Qc6 {[%clk
0:00:40.8]} 35. cxd6 {[%clk 0:00:28]} 35... Qxd6 {[%clk 0:00:41.1]} 36. h4
{[%clk 0:00:20.2]} 36... Bxb6 {[%clk 0:00:13.8]} 37. Ne3 {[%clk 0:00:14.1]}
37... Rb8 {[%clk 0:00:13.1]} 38. Nc4 {[%clk 0:00:14.3]} 38... Qd4 {[%clk
0:00:11.9]} 39. Qxd4 {[%clk 0:00:13.1]} 39... exd4 {[%clk 0:00:12.8]} 40. Nxb6
{[%clk 0:00:11.2]} 40... d3 {[%clk 0:00:12.3]} 41. Kg1 {[%clk 0:00:10.9]} 41...
d2 {[%clk 0:00:12]} 42. Rd1 {[%clk 0:00:10.5]} 42... Rxb6 {[%clk 0:00:11.7]} 43.
Rxd2 {[%clk 0:00:10.9]} 43... h5 {[%clk 0:00:11.3]} 44. Kh2 {[%clk 0:00:10.7]}
44... Kf6 {[%clk 0:00:11.4]} 45. Kg3 {[%clk 0:00:10.6]} 45... Rb4 {[%clk
0:00:11.8]} 46. Rd6+ {[%clk 0:00:10.6]} 46... Kf7 {[%clk 0:00:10.9]} 47. Rc6
{[%clk 0:00:09.9]} 47... Ra4 {[%clk 0:00:10.9]} 48. Rc5 {[%clk 0:00:10.1]} 48...
Rb4 {[%clk 0:00:10.5]} 49. Re5 {[%clk 0:00:10.2]} 49... Kf6 {[%clk 0:00:10.2]}
50. Re4 {[%clk 0:00:10.6]} 50... Rb2 {[%clk 0:00:10.6]} 51. Kh3 {[%clk
0:00:10.8]} 51... Kf7 {[%clk 0:00:08.5]} 52. g3 {[%clk 0:00:10.5]} 52... Rb3
{[%clk 0:00:07.8]} 53. Rf4+ {[%clk 0:00:10.8]} 53... Ke6 {[%clk 0:00:08.1]} 54.
Rf8 {[%clk 0:00:10.5]} 54... Ke7 {[%clk 0:00:07.9]} 55. Rf4 {[%clk 0:00:10.3]}
55... Ke6 {[%clk 0:00:08.1]} 56. g4 {[%clk 0:00:10.8]} 56... hxg4+ {[%clk
0:00:04.9]} 57. Kxg4 {[%clk 0:00:10.9]} 57... Rb5 {[%clk 0:00:05.5]} 58. Rf8
{[%clk 0:00:10.3]} 58... Ke7 {[%clk 0:00:05.5]} 59. Rf4 {[%clk 0:00:10.3]} 59...
Ke6 {[%clk 0:00:05.7]} 60. Re4+ {[%clk 0:00:10.4]} 60... Kf6 {[%clk 0:00:05.7]}
61. Ra4 {[%clk 0:00:09.8]} 61... Kg7 {[%clk 0:00:04.8]} 62. f4 {[%clk 0:00:10]}
62... Kh6 {[%clk 0:00:04.3]} 63. Ra6 {[%clk 0:00:10.2]} 63... Rb1 {[%clk
0:00:04.1]} 64. f5 {[%clk 0:00:09.6]} 64... Rg1+ {[%clk 0:00:04.3]} 65. Kh3
{[%clk 0:00:09.7]} 65... Kg7 {[%clk 0:00:03.3]} 66. fxg6 {[%clk 0:00:07]} 66...
Rxg6 {[%clk 0:00:04.2]} 67. Ra5 {[%clk 0:00:07.1]} 67... Kh6 {[%clk 0:00:03.9]}
1/2-1/2

[Event "*** SCC Grand Prix: Titled Tuesday Blitz"]
[Site "Chess.com"]
[Date "2020.06.02"]
[Round "6"]
[White "AlexSuv"]
[Black "maximnovik"]
[Result "1-0"]
[WhiteElo "2679"]
[BlackElo "2456"]
[TimeControl "180+1"]
[EndTime "11:10:36 PDT"]
[Termination "AlexSuv won on time"]

1. d4 {[%clk 0:03:00.9]} 1... Nf6 {[%clk 0:02:45.1]} 2. Nf3 {[%clk 0:03:00.8]}
2... g6 {[%clk 0:02:45.4]} 3. c4 {[%clk 0:03:00.6]} 3... Bg7 {[%clk 0:02:45.7]}
4. Nc3 {[%clk 0:03:01]} 4... d5 {[%clk 0:02:46.3]} 5. Bg5 {[%clk 0:02:57.5]}
5... Ne4 {[%clk 0:02:46]} 6. cxd5 {[%clk 0:02:57.9]} 6... Nxg5 {[%clk
0:02:43.6]} 7. Nxg5 {[%clk 0:02:58.2]} 7... e6 {[%clk 0:02:44]} 8. Qd2 {[%clk
0:02:58.6]} 8... exd5 {[%clk 0:02:44.1]} 9. Qe3+ {[%clk 0:02:58.6]} 9... Kf8
{[%clk 0:02:44.7]} 10. Qf4 {[%clk 0:02:58.7]} 10... Bf6 {[%clk 0:02:44.9]} 11.
h4 {[%clk 0:02:58.7]} 11... h6 {[%clk 0:02:45.3]} 12. Nf3 {[%clk 0:02:58.7]}
12... Be6 {[%clk 0:02:44.4]} 13. e3 {[%clk 0:02:57.1]} 13... Nd7 {[%clk
0:02:44.1]} 14. Bd3 {[%clk 0:02:52.7]} 14... c5 {[%clk 0:02:37.5]} 15. Rd1
{[%clk 0:02:47.2]} 15... Qb8 {[%clk 0:01:50.1]} 16. Qxb8+ {[%clk 0:02:41.3]}
16... Rxb8 {[%clk 0:01:50]} 17. dxc5 {[%clk 0:02:28.6]} 17... Nxc5 {[%clk
0:01:49.1]} 18. Nd4 {[%clk 0:02:25.7]} 18... Kg7 {[%clk 0:01:40.2]} 19. Be2
{[%clk 0:02:17.1]} 19... h5 {[%clk 0:01:36.9]} 20. g3 {[%clk 0:02:16.1]} 20...
Rhd8 {[%clk 0:01:34.2]} 21. O-O {[%clk 0:02:11.8]} 21... Bh3 {[%clk 0:01:20.3]}
22. Rfe1 {[%clk 0:02:11.2]} 22... Ne4 {[%clk 0:01:20.3]} 23. Nb1 {[%clk
0:01:21.5]} 23... Rbc8 {[%clk 0:01:17.6]} 24. Bd3 {[%clk 0:01:20.7]} 24... Rc7
{[%clk 0:00:20.1]} 25. Bxe4 {[%clk 0:01:16.6]} 25... dxe4 {[%clk 0:00:19.3]} 26.
Nc3 {[%clk 0:01:15.2]} 26... Bg4 {[%clk 0:00:10.8]} 27. Rd2 {[%clk 0:01:12.1]}
27... Rcd7 {[%clk 0:00:09.1]} 28. Nxe4 {[%clk 0:00:51.4]} 28... Bxd4 {[%clk
0:00:08.9]} 29. exd4 {[%clk 0:00:52.2]} 29... Rxd4 {[%clk 0:00:09.1]} 30. Rxd4
{[%clk 0:00:51]} 30... Rxd4 {[%clk 0:00:09.1]} 31. Kg2 {[%clk 0:00:44.4]} 31...
Bf5 {[%clk 0:00:08.5]} 32. Nc3 {[%clk 0:00:41.5]} 32... Rd2 {[%clk 0:00:08.1]}
33. Re2 {[%clk 0:00:41.5]} 33... Rxe2 {[%clk 0:00:06.7]} 34. Nxe2 {[%clk
0:00:40.9]} 34... Be4+ {[%clk 0:00:07.2]} 35. f3 {[%clk 0:00:40.5]} 35... Bd5
{[%clk 0:00:07.7]} 36. Nc3 {[%clk 0:00:39.8]} 36... Bc6 {[%clk 0:00:06.5]} 37.
Kf2 {[%clk 0:00:39.5]} 37... Kf6 {[%clk 0:00:06.9]} 38. Ke3 {[%clk 0:00:40.1]}
38... Ke5 {[%clk 0:00:07.3]} 39. Ne2 {[%clk 0:00:33.5]} 39... f6 {[%clk
0:00:05.2]} 40. Nf4 {[%clk 0:00:32.1]} 40... Be8 {[%clk 0:00:05.4]} 41. Nd3+
{[%clk 0:00:31.8]} 41... Kf5 {[%clk 0:00:04.4]} 42. a3 {[%clk 0:00:29.2]} 42...
g5 {[%clk 0:00:04]} 43. b4 {[%clk 0:00:26.7]} 43... Bc6 {[%clk 0:00:04.1]} 44.
Nc5 {[%clk 0:00:23.9]} 44... b6 {[%clk 0:00:03.8]} 45. Nb3 {[%clk 0:00:22.1]}
45... Ke5 {[%clk 0:00:03.1]} 46. Nd4 {[%clk 0:00:20.7]} 46... Bd5 {[%clk
0:00:02.9]} 47. f4+ {[%clk 0:00:19.5]} 47... gxf4+ {[%clk 0:00:02.8]} 48. gxf4+
{[%clk 0:00:19.3]} 48... Kd6 {[%clk 0:00:03.4]} 49. Nf5+ {[%clk 0:00:20.2]}
49... Kc6 {[%clk 0:00:01.4]} 50. Ng3 {[%clk 0:00:14.3]} 50... Kb5 {[%clk
0:00:01.4]} 51. Nxh5 {[%clk 0:00:13.7]} 51... Ka4 {[%clk 0:00:01.5]} 52. Nxf6
{[%clk 0:00:13.7]} 52... Bf7 {[%clk 0:00:01.9]} 53. Kd4 {[%clk 0:00:13.2]} 53...
Kxa3 {[%clk 0:00:02.1]} 54. Kc3 {[%clk 0:00:13.5]} 54... a5 {[%clk 0:00:01.7]}
55. bxa5 {[%clk 0:00:13.8]} 55... bxa5 {[%clk 0:00:01.8]} 56. h5 {[%clk
0:00:14.1]} 56... a4 {[%clk 0:00:01.7]} 57. h6 {[%clk 0:00:14.4]} 57... Bg6
{[%clk 0:00:01.9]} 58. h7 {[%clk 0:00:13.9]} 58... Bxh7 {[%clk 0:00:02]} 59.
Nxh7 {[%clk 0:00:13.9]} 59... Ka2 {[%clk 0:00:02.5]} 60. Kc2 {[%clk 0:00:13.1]}
60... a3 {[%clk 0:00:02.4]} 61. Nf6 {[%clk 0:00:09.6]} 61... Ka1 {[%clk
0:00:02.9]} 62. Ne4 {[%clk 0:00:09.1]} 62... a2 {[%clk 0:00:03.4]} 63. Kb3
{[%clk 0:00:09.5]} 63... Kb1 {[%clk 0:00:03.2]} 64. Nc3+ {[%clk 0:00:09.7]}
64... Ka1 {[%clk 0:00:02.3]} 65. Nxa2 {[%clk 0:00:09.5]} 65... Kb1 {[%clk
0:00:02.1]} 66. f5 {[%clk 0:00:09.8]} 1-0

[Event "*** SCC Grand Prix: Titled Tuesday Blitz"]
[Site "Chess.com"]
[Date "2020.06.02"]
[Round "6"]
[White "cukus"]
[Black "dopolian"]
[Result "0-1"]
[WhiteElo "2474"]
[BlackElo "2332"]
[TimeControl "180+1"]
[EndTime "11:10:36 PDT"]
[Termination "dopolian won by resignation"]

1. e4 {[%clk 0:03:00.9]} 1... e5 {[%clk 0:02:53.2]} 2. Nf3 {[%clk 0:03:01]} 2...
Nc6 {[%clk 0:02:52.6]} 3. Bb5 {[%clk 0:03:00.7]} 3... a6 {[%clk 0:02:52.4]} 4.
Ba4 {[%clk 0:03:01.2]} 4... Nf6 {[%clk 0:02:52.2]} 5. O-O {[%clk 0:03:01.5]}
5... Nxe4 {[%clk 0:02:51.8]} 6. d4 {[%clk 0:03:01.4]} 6... b5 {[%clk 0:02:51.9]}
7. Bb3 {[%clk 0:03:02]} 7... d5 {[%clk 0:02:52.2]} 8. dxe5 {[%clk 0:03:02.6]}
8... Be6 {[%clk 0:02:52.7]} 9. Nbd2 {[%clk 0:03:03]} 9... Bc5 {[%clk 0:02:50.7]}
10. Qe2 {[%clk 0:02:57]} 10... Bf5 {[%clk 0:02:50.3]} 11. c3 {[%clk 0:02:44.9]}
11... O-O {[%clk 0:02:49.4]} 12. Rd1 {[%clk 0:02:38]} 12... Nxf2 {[%clk
0:02:42.2]} 13. Nd4 {[%clk 0:02:10.3]} 13... Nxd1 {[%clk 0:02:29.7]} 14. Qxd1
{[%clk 0:02:08.8]} 14... Nxd4 {[%clk 0:02:28]} 15. cxd4 {[%clk 0:02:09.1]} 15...
Bxd4+ {[%clk 0:02:28.9]} 16. Kh1 {[%clk 0:02:09.9]} 16... Bxe5 {[%clk
0:02:23.2]} 17. a4 {[%clk 0:02:08.4]} 17... Be4 {[%clk 0:02:16]} 18. Nxe4 {[%clk
0:02:05.4]} 18... dxe4 {[%clk 0:02:14]} 19. Qe1 {[%clk 0:02:03.6]} 19... Qd4
{[%clk 0:01:42]} 20. Be3 {[%clk 0:02:01.6]} 20... Qxb2 {[%clk 0:01:38]} 21. Rb1
{[%clk 0:02:02]} 21... Qc3 {[%clk 0:01:36.6]} 22. Qf2 {[%clk 0:01:57.2]} 22...
Rad8 {[%clk 0:01:25]} 23. Bc2 {[%clk 0:01:54.6]} 23... f5 {[%clk 0:01:15.5]} 24.
axb5 {[%clk 0:01:53.3]} 24... axb5 {[%clk 0:01:10.8]} 25. Bc1 {[%clk 0:01:48.4]}
25... Bd4 {[%clk 0:01:01.2]} 26. Qe2 {[%clk 0:01:46.8]} 26... c6 {[%clk
0:00:46.8]} 27. Bf4 {[%clk 0:01:30.6]} 27... Kh8 {[%clk 0:00:41.4]} 28. Rc1
{[%clk 0:01:23.6]} 28... Qb2 {[%clk 0:00:37]} 29. Rb1 {[%clk 0:01:23.9]} 29...
Qa3 {[%clk 0:00:33.6]} 30. Bd2 {[%clk 0:01:15.8]} 30... Be5 {[%clk 0:00:29.4]}
31. Bb4 {[%clk 0:01:14.7]} 31... Qa2 {[%clk 0:00:21.7]} 32. Bxf8 {[%clk
0:01:13.9]} 32... Rxf8 {[%clk 0:00:22.6]} 33. g4 {[%clk 0:01:10.4]} 33... Qd5
{[%clk 0:00:09.5]} 34. gxf5 {[%clk 0:01:03.4]} 34... e3+ {[%clk 0:00:09.8]} 35.
Kg1 {[%clk 0:01:02.1]} 35... Qd4 {[%clk 0:00:07]} 36. Rd1 {[%clk 0:01:02]} 36...
Qf4 {[%clk 0:00:06.8]} 37. Kh1 {[%clk 0:00:57.4]} 37... c5 {[%clk 0:00:04.6]}
38. f6 {[%clk 0:00:51.5]} 38... Rxf6 {[%clk 0:00:02.7]} 39. Rd8+ {[%clk
0:00:50.6]} 39... Rf8 {[%clk 0:00:03.1]} 40. Rxf8+ {[%clk 0:00:46.1]} 40... Qxf8
{[%clk 0:00:04]} 41. Qxe3 {[%clk 0:00:47]} 41... Bd4 {[%clk 0:00:03.1]} 42. Qe2
{[%clk 0:00:45.5]} 42... g6 {[%clk 0:00:02.9]} 43. h4 {[%clk 0:00:43.3]} 43...
Kg7 {[%clk 0:00:03.2]} 44. h5 {[%clk 0:00:43.5]} 44... Qf6 {[%clk 0:00:03.4]}
45. h6+ {[%clk 0:00:40.7]} 45... Kxh6 {[%clk 0:00:03]} 46. Qh2+ {[%clk
0:00:37.7]} 46... Kg7 {[%clk 0:00:02.5]} 47. Qc7+ {[%clk 0:00:38.5]} 47... Qf7
{[%clk 0:00:02.3]} 48. Qd6 {[%clk 0:00:21.9]} 48... b4 {[%clk 0:00:02.8]} 49.
Bd3 {[%clk 0:00:19.1]} 49... Qf6 {[%clk 0:00:03.7]} 50. Qc7+ {[%clk 0:00:17.7]}
50... Kh6 {[%clk 0:00:04]} 51. Qh2+ {[%clk 0:00:16.9]} 51... Kg7 {[%clk
0:00:04.2]} 52. Qc7+ {[%clk 0:00:16.8]} 52... Qf7 {[%clk 0:00:04.7]} 53. Qxf7+
{[%clk 0:00:12.8]} 53... Kxf7 {[%clk 0:00:04.5]} 54. Bc4+ {[%clk 0:00:13.7]}
54... Kf6 {[%clk 0:00:05]} 55. Kg2 {[%clk 0:00:14.6]} 55... h5 {[%clk
0:00:05.6]} 56. Kf3 {[%clk 0:00:15.2]} 56... g5 {[%clk 0:00:06.1]} 57. Kg3
{[%clk 0:00:14.4]} 57... g4 {[%clk 0:00:07]} 58. Kh4 {[%clk 0:00:14]} 58... Kg6
{[%clk 0:00:06.3]} 59. Bd3+ {[%clk 0:00:14.3]} 59... Kh6 {[%clk 0:00:06.8]} 60.
Kg3 {[%clk 0:00:13.3]} 60... Be5+ {[%clk 0:00:06.8]} 61. Kh4 {[%clk 0:00:11.5]}
61... Bc3 {[%clk 0:00:05.3]} 62. Kg3 {[%clk 0:00:12.4]} 62... Be1+ {[%clk
0:00:05.5]} 63. Kf4 {[%clk 0:00:11.5]} 63... Kg7 {[%clk 0:00:05.2]} 64. Bc4
{[%clk 0:00:09.5]} 64... g3 {[%clk 0:00:05.2]} 65. Kf3 {[%clk 0:00:08]} 65... h4
{[%clk 0:00:05.7]} 66. Kg2 {[%clk 0:00:07.3]} 66... Bf2 {[%clk 0:00:06.1]} 67.
Kh3 {[%clk 0:00:06.9]} 67... Kf6 {[%clk 0:00:06.7]} 68. Bd3 {[%clk 0:00:05.9]}
68... Ke5 {[%clk 0:00:07.1]} 69. Bc4 {[%clk 0:00:05.2]} 69... Kd4 {[%clk
0:00:07.5]} 70. Bg8 {[%clk 0:00:03.3]} 70... c4 {[%clk 0:00:08.4]} 71. Bxc4
{[%clk 0:00:01.6]} 71... Kxc4 {[%clk 0:00:08.4]} 0-1

[Event "*** SCC Grand Prix: Titled Tuesday Blitz"]
[Site "Chess.com"]
[Date "2020.06.02"]
[Round "6"]
[White "m-garcett"]
[Black "quesfr"]
[Result "1/2-1/2"]
[WhiteElo "2059"]
[BlackElo "2241"]
[TimeControl "180+1"]
[EndTime "11:10:36 PDT"]
[Termination "Game drawn - insufficient material"]

1. e4 {[%clk 0:02:59.2]} 1... c5 {[%clk 0:02:59.1]} 2. Nf3 {[%clk 0:02:59]} 2...
d6 {[%clk 0:02:58.3]} 3. d4 {[%clk 0:02:59.3]} 3... cxd4 {[%clk 0:02:59.2]} 4.
Nxd4 {[%clk 0:02:59.7]} 4... Nf6 {[%clk 0:02:59.4]} 5. Nc3 {[%clk 0:03:00]} 5...
g6 {[%clk 0:02:59.4]} 6. Be3 {[%clk 0:02:59.6]} 6... Bg7 {[%clk 0:02:56.9]} 7.
f3 {[%clk 0:03:00]} 7... O-O {[%clk 0:02:55]} 8. Bc4 {[%clk 0:03:00.5]} 8... Nc6
{[%clk 0:02:52.5]} 9. Qd2 {[%clk 0:02:56.2]} 9... Bd7 {[%clk 0:02:51.6]} 10.
O-O-O {[%clk 0:02:55.3]} 10... Qc7 {[%clk 0:02:45.4]} 11. Bb3 {[%clk 0:02:54.7]}
11... Na5 {[%clk 0:02:45.3]} 12. h4 {[%clk 0:02:49]} 12... Nc4 {[%clk
0:02:45.4]} 13. Bxc4 {[%clk 0:02:48.7]} 13... Qxc4 {[%clk 0:02:46.3]} 14. h5
{[%clk 0:02:48.3]} 14... Rac8 {[%clk 0:02:24.3]} 15. hxg6 {[%clk 0:02:46]} 15...
fxg6 {[%clk 0:02:22.5]} 16. g4 {[%clk 0:02:29.4]} 16... b5 {[%clk 0:02:09.9]}
17. Bh6 {[%clk 0:02:28]} 17... Rf7 {[%clk 0:02:05.8]} 18. Bxg7 {[%clk
0:02:27.1]} 18... Rxg7 {[%clk 0:02:05.5]} 19. g5 {[%clk 0:02:11.8]} 19... Nh5
{[%clk 0:01:59.1]} 20. Nf5 {[%clk 0:02:09.2]} 20... gxf5 {[%clk 0:01:51.1]} 21.
Rxh5 {[%clk 0:02:04.2]} 21... b4 {[%clk 0:01:47]} 22. Nd5 {[%clk 0:02:00.2]}
22... fxe4 {[%clk 0:01:46]} 23. Rdh1 {[%clk 0:01:51.5]} 23... Qxa2 {[%clk
0:01:39.4]} 24. Qd4 {[%clk 0:01:34.5]} 24... b3 {[%clk 0:01:28.1]} 25. Nc3
{[%clk 0:01:28.1]} 25... Qa1+ {[%clk 0:01:19.7]} 26. Kd2 {[%clk 0:01:28.2]}
26... Qxb2 {[%clk 0:01:18.1]} 27. Qd5+ {[%clk 0:01:04.1]} 27... e6 {[%clk
0:01:11.1]} 28. Qxb3 {[%clk 0:01:02.8]} 28... Qxb3 {[%clk 0:01:00.2]} 29. cxb3
{[%clk 0:01:03.7]} 29... exf3 {[%clk 0:00:58.1]} 30. Ne4 {[%clk 0:01:03.4]}
30... Bc6 {[%clk 0:00:36.6]} 31. Nf6+ {[%clk 0:01:01.2]} 31... Kf7 {[%clk
0:00:36.7]} 32. Rxh7 {[%clk 0:00:48.7]} 32... Rxh7 {[%clk 0:00:36.4]} 33. Rxh7+
{[%clk 0:00:47.5]} 33... Kg6 {[%clk 0:00:36.5]} 34. Rxa7 {[%clk 0:00:41.6]}
34... Kxg5 {[%clk 0:00:36.4]} 35. Nh7+ {[%clk 0:00:36.5]} 35... Kf4 {[%clk
0:00:35.4]} 36. Rf7+ {[%clk 0:00:34.7]} 36... Kg3 {[%clk 0:00:35.4]} 37. Ke3
{[%clk 0:00:34.5]} 37... Rb8 {[%clk 0:00:33.4]} 38. Rg7+ {[%clk 0:00:29.8]}
38... Kh4 {[%clk 0:00:23.1]} 39. Nf6 {[%clk 0:00:19.6]} 39... Rxb3+ {[%clk
0:00:21.6]} 40. Kf4 {[%clk 0:00:19.8]} 40... Rb4+ {[%clk 0:00:19.9]} 41. Ke3
{[%clk 0:00:19.6]} 41... Kh3 {[%clk 0:00:14]} 42. Rh7+ {[%clk 0:00:17.5]} 42...
Kg2 {[%clk 0:00:13.1]} 43. Rg7+ {[%clk 0:00:17]} 43... Kf1 {[%clk 0:00:12.4]}
44. Ng4 {[%clk 0:00:15.7]} 44... Rb3+ {[%clk 0:00:11]} 45. Kf4 {[%clk
0:00:15.3]} 45... f2 {[%clk 0:00:10.9]} 46. Ne3+ {[%clk 0:00:15.2]} 46... Ke2
{[%clk 0:00:10.6]} 47. Rg3 {[%clk 0:00:10.7]} 47... f1=Q+ {[%clk 0:00:06.4]} 48.
Nxf1 {[%clk 0:00:10.1]} 48... Rxg3 {[%clk 0:00:06.3]} 49. Nxg3+ {[%clk
0:00:10.6]} 49... Kd3 {[%clk 0:00:06.8]} 50. Nh5 {[%clk 0:00:09]} 50... e5+
{[%clk 0:00:07]} 51. Kg3 {[%clk 0:00:08.5]} 51... e4 {[%clk 0:00:07.2]} 52. Kf2
{[%clk 0:00:08.7]} 52... e3+ {[%clk 0:00:07]} 53. Ke1 {[%clk 0:00:08.3]} 53...
d5 {[%clk 0:00:06.6]} 54. Nf6 {[%clk 0:00:07.4]} 54... d4 {[%clk 0:00:06.1]} 55.
Ng4 {[%clk 0:00:06.8]} 55... Ba4 {[%clk 0:00:04.9]} 56. Ne5+ {[%clk 0:00:06.2]}
56... Ke4 {[%clk 0:00:04.5]} 57. Nc4 {[%clk 0:00:05.5]} 57... Be8 {[%clk
0:00:02.9]} 58. Nd6+ {[%clk 0:00:04.8]} 58... Kf3 {[%clk 0:00:02.6]} 59. Nxe8
{[%clk 0:00:05.7]} 59... d3 {[%clk 0:00:02.9]} 60. Nf6 {[%clk 0:00:03.6]} 60...
d2+ {[%clk 0:00:02.5]} 61. Kd1 {[%clk 0:00:03.3]} 61... e2+ {[%clk 0:00:02.6]}
62. Kxd2 {[%clk 0:00:03.3]} 62... Kf2 {[%clk 0:00:02.3]} 63. Ng4+ {[%clk
0:00:03.3]} 63... Kf1 {[%clk 0:00:02.2]} 64. Nh2+ {[%clk 0:00:01.7]} 64... Kf2
{[%clk 0:00:02]} 65. Ng4+ {[%clk 0:00:02]} 65... Kf3 {[%clk 0:00:02.5]} 66. Ke1
{[%clk 0:00:01.8]} 66... Kg2 {[%clk 0:00:03.4]} 67. Kxe2 {[%clk 0:00:01.8]}
1/2-1/2